bitfinex/quotes_SOLUSD_20240614
["timestamp","ask_amount","ask_price","bid_price","bid_amount"]
[1718375534904,100.0,145.68,145.61,0.34]
[1718375535111,17.7815,145.66,145.6,6.3814]
[1718375535322,200.0,145.72,145.62,2.7108]
[1718375535532,200.0,145.72,145.6,6.3814]
[1718375535533,100.0,145.67,145.6,6.3814]
[1718375535715,122.86,145.67,145.6,6.3814]
[1718375535911,7.6217,145.64,145.6,6.3814]
[1718375536231,12.7009,145.66,145.6,6.3814]
[1718375536406,2.5403,145.65,145.6,6.3814]
[1718375536607,12.701,145.66,145.6,6.3814]
[1718375536824,15.2412,145.66,145.6,6.3814]
[1718375537029,2.5403,145.65,145.6,6.3814]
[1718375537251,100.0,145.64,145.6,6.3814]
[1718375537538,100.0,145.6,145.56,6.3196]
[1718375537759,7.6253,145.57,145.52,21.8432]
[1718375537914,122.8744,145.58,145.52,21.8432]
[1718375538112,107.6249,145.58,145.52,21.8432]
[1718375538319,2.5417,145.57,145.52,21.8432]
[1718375538518,102.5416,145.58,145.52,21.8432]
[1718375538725,7.6252,145.57,145.52,21.8432]
[1718375539140,2.5416,145.58,145.52,21.8432]
[1718375539347,100.0,145.6,145.52,21.8432]
[1718375539647,122.8711,145.6,145.52,21.8432]
[1718375539836,2.5414,145.59,145.52,24.3857]
[1718375540042,7.6241,145.59,145.52,21.8432]
[1718375540216,2.5414,145.59,145.52,21.8432]
[1718375540416,2.5416,145.58,145.52,21.8432]
[1718375540658,100.0,145.56,145.52,21.8432]
[1718375540843,100.0,145.56,145.4,10.8275496]
[1718375540844,15.2536,145.54,145.48,6.3921]
[1718375541145,7.627,145.54,145.48,6.3921]
[1718375541348,2.5424,145.53,145.48,6.3921]
[1718375541538,7.6274,145.53,145.48,6.3921]
[1718375541725,100.0,145.54,145.48,6.3921]
[1718375541916,102.5419,145.56,145.48,11.4783]
[1718375542112,100.0,145.56,145.51,5.0854]
[1718375542324,7.6238,145.6,145.51,5.0854]
[1718375542325,100.0,145.59,145.52,2.5424]
[1718375542530,125.4114,145.61,145.53,2.5424]
[1718375542730,107.6232,145.61,145.53,2.5423]
[1718375542937,7.6248,145.58,145.52,0.68]
[1718375543139,5.0822,145.61,145.53,7.627]
[1718375543352,2.5417,145.57,145.52,0.51]
[1718375543517,100.0,145.59,145.48,6.3921]
[1718375543729,2.5416,145.58,145.5,5.2557]
[1718375543931,102.5419,145.57,145.51,0.51]
[1718375544239,7.6255,145.57,145.51,0.51]
[1718375544460,100.0,145.57,145.48,6.3921]
[1718375544626,100.0,145.58,145.48,6.3921]
[1718375544818,112.7061,145.6,145.52,2.5425]
[1718375545021,2.5415,145.58,145.5,22.8857]
[1718375545240,107.6237,145.6,145.52,7.6276]
[1718375545445,200.0,145.57,145.48,6.3921]
[1718375545658,2.5423,145.54,145.48,6.3921]
[1718375545960,122.8823,145.53,145.48,6.3921]
[1718375546242,2.5427,145.51,145.48,6.3921]
[1718375546541,222.8823,145.53,145.48,6.3921]
[1718375546723,225.4248,145.53,145.48,6.3921]
[1718375546919,2.5419,145.56,145.49,2.543]
[1718375547137,105.0837,145.57,145.49,2.543]
[1718375547320,7.6259,145.56,145.49,0.17]
[1718375547530,7.6259,145.56,145.48,6.3921]
[1718375547531,100.0,145.55,145.48,6.3921]
[1718375547738,122.8825,145.53,145.48,6.3921]
[1718375547936,107.6286,145.51,145.48,6.3921]
[1718375548121,15.2579,145.5,145.48,6.3921]
[1718375548321,7.629,145.5,145.48,6.3921]
[1718375548628,100.0,145.48,145.44,6.4302]
[1718375548834,12.7157,145.49,145.44,6.4302]
[1718375549027,100.0,145.48,145.44,6.4302]
[1718375549224,100.0,145.44,145.4,7.2577496]
[1718375549542,100.0,145.45,145.4,7.2577496]
[1718375549838,100.0,145.46,145.4,7.2577496]
[1718375549839,22.8937,145.46,145.4,7.2577496]
[1718375550035,2.5436,145.46,145.4,7.2577496]
[1718375550237,7.6326,145.43,145.4,7.2577496]
[1718375550435,107.6321,145.44,145.4,7.2577496]
[1718375550747,2.5441,145.43,145.4,7.2577496]
[1718375550963,5.0883,145.43,145.4,7.2577496]
[1718375551145,2.5445,145.41,145.4,0.8275496]
[1718375551318,25.4451,145.41,145.4,0.8275496]
[1718375551527,125.4451,145.41,145.4,0.8275496]
[1718375552021,25.4451,145.41,145.4,0.8275496]
[1718375552219,125.4451,145.41,145.4,0.8275496]
[1718375553348,170.9551,145.41,145.4,0.8275496]
[1718375553662,125.4591,145.33,145.32,11.39035338]
[1718375554464,125.7991,145.33,145.32,11.39035338]
[1718375554757,125.7991,145.33,145.26,0.8275496]
[1718375554758,125.4696,145.27,145.26,0.8275496]
[1718375555326,145.17,145.33,145.11,0.8275496]
[1718375555327,100.0,145.22,145.11,0.8275496]
[1718375555547,10.0,145.31,145.11,0.8275496]
[1718375555548,100.0,145.25,145.14,6.3185]
[1718375555747,100.0,145.25,145.15,5.098]
[1718375555748,110.1899,145.25,145.15,5.098]
[1718375556046,100.0,145.29,145.14,4.3185]
[1718375556356,100.0,145.23,145.15,22.9407]
[1718375556542,7.642,145.25,145.18,7.6454]
[1718375556543,100.0,145.25,145.18,7.6454]
[1718375556727,100.0,145.25,145.18,7.6453]
[1718375556930,100.0,145.25,145.14,4.3185]
[1718375557128,100.0,145.26,145.14,4.3185]
[1718375557341,200.0,145.26,145.14,4.3185]
[1718375557560,107.6425,145.24,145.16,2.5488]
[1718375557727,100.0,145.28,145.14,4.3185]
[1718375558277,100.0,145.28,145.2,10.1924]
[1718375558430,100.0,145.28,145.21,2.5479]
[1718375558626,100.0,145.31,145.19,0.51]
[1718375558858,105.0925,145.31,145.19,0.51]
[1718375559156,107.638,145.33,145.26,6.0359]
[1718375559364,5.0926,145.31,145.22,5.0955]
[1718375559673,100.0,145.33,145.23,0.17]
[1718375559833,100.0,145.33,145.22,0.17]
[1718375560036,7.6384,145.32,145.24,2.5474]
[1718375560355,7.6384,145.32,145.21,6.7163]
[1718375560356,100.0,145.32,145.21,6.5463]
[1718375560659,10.1839,145.33,145.22,0.34]
[1718375560830,100.0,145.34,145.22,0.34]
[1718375560831,110.1834,145.34,145.22,0.34]
[1718375561032,105.0922,145.32,145.22,0.34]
[1718375561232,107.6383,145.32,145.24,2.5473]
[1718375561434,102.547,145.27,145.21,6.5463]
[1718375561657,2.547,145.27,145.21,6.5463]
[1718375561956,7.641,145.27,145.21,6.5463]
[1718375562136,122.9201,145.29,145.21,6.5463]
[1718375562340,122.9201,145.29,145.13,15.9659]
[1718375562341,105.0941,145.27,145.19,2.5482]
[1718375562567,107.6412,145.27,145.19,2.5482]
[1718375562768,100.0,145.25,145.16,6.3342]
[1718375562953,102.5473,145.25,145.17,2.5486]
[1718375563262,100.0,145.24,145.16,8.8829]
[1718375563441,100.0,145.24,145.16,8.883]
[1718375563442,7.6428,145.24,145.16,8.883]
[1718375563642,5.0948,145.25,145.16,29.2739]
[1718375563845,100.0,145.24,145.16,6.3342]
[1718375564074,100.0,145.26,145.16,6.3342]
[1718375564364,15.2863,145.23,145.16,6.3342]
[1718375564672,100.0,145.26,145.16,6.3342]
[1718375564884,2.547,145.27,145.18,10.1938]
[1718375565173,2.5473,145.25,145.18,2.5485]
[1718375565380,105.0951,145.24,145.16,11.4319]
[1718375565674,2.5478,145.22,145.16,6.3342]
[1718375565868,122.931,145.22,145.16,6.3342]
[1718375566072,100.0,145.24,145.16,6.3342]
[1718375566281,17.8321,145.25,145.16,11.432]
[1718375566447,125.4791,145.22,145.16,6.3342]
[1718375566652,100.0,145.24,145.16,6.3342]
[1718375566868,2.5481,145.21,145.16,6.3342]
[1718375567073,5.0948,145.25,145.16,29.2736]
[1718375567385,7.644,145.21,145.16,6.3342]
[1718375567542,2.5482,145.2,145.16,6.3342]
[1718375567747,100.0,145.21,145.16,6.3342]
[1718375567979,2.548,145.21,145.16,6.3342]
[1718375568196,105.0955,145.23,145.16,6.3342]
[1718375568354,7.6436,145.22,145.16,6.3342]
[1718375568553,100.0,145.21,145.16,6.3342]
[1718375568860,2.548,145.22,145.16,6.3342]
[1718375569055,107.6434,145.23,145.16,6.3342]
[1718375569270,2.5479,145.22,145.16,6.3342]
[1718375569451,125.4772,145.23,145.16,6.3342]
[1718375569649,2.5479,145.22,145.16,6.3342]
[1718375569869,7.6436,145.22,145.16,6.3342]
[1718375570064,7.6444,145.21,145.16,6.3342]
[1718375570252,2.5481,145.21,145.16,6.3342]
[1718375570567,5.0965,145.2,145.16,6.3342]
[1718375570765,2.5487,145.18,145.16,6.3342]
[1718375571085,100.0,145.19,145.13,15.9659]
[1718375571245,7.6471,145.16,145.11,7.0462496]
[1718375571593,2.5489,145.16,145.11,7.0462496]
[1718375571879,2.5491,145.15,145.11,7.0462496]
[1718375572050,100.0,145.17,145.11,7.0462496]
[1718375572257,13.80559024,145.25,145.11,7.0462496]
[1718375572258,2.5486,145.18,145.11,7.0462496]
[1718375572460,2.5481,145.21,145.13,5.0988]
[1718375572696,7.6439,145.22,145.14,7.6475]
[1718375572870,117.8344,145.23,145.19,2.5483]
[1718375572871,100.0,145.23,145.19,2.5483]
[1718375573203,100.0,145.23,145.11,7.0462496]
[1718375573352,100.0,145.23,145.15,10.1961]
[1718375573556,102.5477,145.23,145.15,22.9411]
[1718375573756,102.5477,145.23,145.11,7.0462496]
[1718375573757,2.5481,145.21,145.13,5.0986]
[1718375573956,107.6443,145.21,145.13,15.2963]
[1718375574192,5.0972,145.18,145.12,0.51]
[1718375574403,100.0,145.21,145.15,7.6469]
[1718375574556,100.0,145.21,145.14,5.0983]
[1718375574754,100.0,145.21,145.14,22.9427]
[1718375574985,100.0,145.21,145.15,2.5489]
[1718375575162,100.0,145.21,145.14,17.8443]
[1718375575503,100.0,145.21,145.14,7.6475]
[1718375575661,100.0,145.21,145.15,2.549]
[1718375576075,100.0,145.21,145.14,25.4915]
[1718375576279,107.6442,145.21,145.13,7.6481]
[1718375576485,122.9323,145.21,145.13,2.5493]
[1718375576763,100.0,145.23,145.16,12.7444]
[1718375576963,107.97339024,145.29,145.16,12.7444]
[1718375576964,2.547,145.27,145.18,6.3889]
[1718375577165,100.0,145.26,145.19,2.5483]
[1718375577475,102.5472,145.26,145.18,29.1554]
[1718375577660,100.0,145.28,145.21,7.6439]
[1718375577863,100.0,145.3,145.24,2.5474]
[1718375578169,100.0,145.33,145.2,0.17]
[1718375578382,100.0,145.36,145.19,0.51]
[1718375578383,100.0,145.31,145.19,0.51]
[1718375578566,100.0,145.29,145.2,0.17]
[1718375578883,102.5463,145.31,145.23,22.9281]
[1718375579085,7.6405,145.28,145.19,2.7182]
[1718375579294,125.4736,145.25,145.18,6.2189]
[1718375579465,102.5474,145.25,145.18,6.2189]
[1718375579666,107.6422,145.25,145.18,6.2189]
[1718375579969,117.8287,145.28,145.2,2.5481]
[1718375580184,102.5468,145.28,145.2,22.9333]
[1718375580383,100.0,145.28,145.21,7.644]
[1718375580596,100.0,145.3,145.24,7.6423]
[1718375580782,22.9155,145.32,145.21,0.17]
[1718375580783,100.0,145.32,145.21,0.17]
[1718375580965,100.0,145.34,145.26,7.6411]
[1718375581167,100.0,145.34,145.27,16.4426]
[1718375581366,105.0922,145.32,145.27,6.2549]
[1718375581684,100.0,145.34,145.23,8.8025]
[1718375581685,100.0,145.29,145.23,8.8025]
[1718375581873,112.7316,145.31,145.23,8.8025]
[1718375582072,100.0,145.33,145.27,2.5469]
[1718375582295,100.0,145.33,145.23,6.2549]
[1718375582607,2.5468,145.28,145.23,6.2549]
[1718375582765,5.0925,145.32,145.25,2.5473]
[1718375583095,100.0,145.33,145.26,2.547]
[1718375583267,100.0,145.29,145.23,6.2549]
[1718375583468,100.0,145.27,145.23,6.2549]
[1718375583771,107.6422,145.25,145.19,6.4473]
[1718375584092,102.5474,145.25,145.19,6.4473]
[1718375584292,100.0,145.25,145.19,6.4473]
[1718375584508,102.5473,145.25,145.19,6.4473]
[1718375584677,100.0,145.23,145.17,18.6825]
[1718375585000,100.0,145.23,145.17,16.134]
[1718375585186,100.0,145.21,145.17,16.134]
[1718375585380,100.0,145.23,145.17,16.134]
[1718375585586,102.5477,145.23,145.17,16.134]
[1718375585895,117.8339,145.23,145.17,16.134]
[1718375586099,2.5478,145.22,145.17,16.134]
[1718375586293,102.5477,145.23,145.17,16.134]
[1718375586491,100.0,145.23,145.17,16.134]
[1718375586872,100.0,145.23,145.17,18.6826]
[1718375587195,100.0,145.25,145.18,5.0969]
[1718375587507,100.0,145.25,145.17,16.134]
[1718375587806,100.0,145.29,145.18,0.17]
[1718375587995,100.0,145.29,145.23,2.5475]
[1718375588303,100.0,145.29,145.22,2.5478]
[1718375588531,25.4683,145.28,145.2,2.5481]
[1718375588796,112.7352,145.27,145.19,2.5483]
[1718375589102,2.5472,145.26,145.18,5.6069]
[1718375589394,100.0,145.24,145.17,16.134]
[1718375589595,100.0,145.26,145.17,16.134]
[1718375589795,117.8254,145.3,145.21,5.0958]
[1718375589998,102.5465,145.3,145.22,7.6433]
[1718375590305,100.0,145.26,145.19,5.0965]
[1718375590474,100.0,145.24,145.18,2.5485]
[1718375590672,100.0,145.24,145.17,21.2312]
[1718375590872,100.0,145.24,145.18,7.6455]
[1718375591071,100.0,145.24,145.18,2.5485]
[1718375591270,102.5479,145.22,145.16,6.4473]
[1718375591586,100.0,145.22,145.16,6.4473]
[1718375592101,100.0,145.22,145.16,14.0939]
[1718375592285,100.0,145.22,145.16,8.9961]
[1718375592588,100.0,145.2,145.16,6.4473]
[1718375593497,100.0,145.2,145.13,2.5494]
[1718375593793,100.0,145.22,145.16,2.5488]
[1718375593972,100.0,145.22,145.14,5.0982]
[1718375594167,100.0,145.19,145.14,2.5491]
[1718375594368,107.6443,145.21,145.13,7.6481]
[1718375594571,100.0,145.2,145.13,7.6481]
[1718375594821,100.0,145.2,145.14,7.6475]
[1718375595030,7.6437,145.22,145.17,17.8408]
[1718375595031,100.0,145.22,145.17,17.8408]
[1718375595197,100.0,145.22,145.16,2.5488]
[1718375595521,100.0,145.22,145.15,17.8435]
[1718375595522,102.5478,145.22,145.15,2.5489]
[1718375595713,100.0,145.22,145.15,2.5489]
[1718375595912,100.0,145.22,145.14,22.9426]
[1718375595913,100.0,145.26,145.18,7.6453]
[1718375596117,100.0,145.26,145.19,5.0966]
[1718375596307,100.0,145.26,145.19,2.5482]
[1718375596514,100.0,145.31,145.2,6.4103]
[1718375596828,100.0,145.31,145.25,2.5472]
[1718375597007,100.0,145.31,145.24,7.6421]
[1718375597305,100.0,145.29,145.23,7.6427]
[1718375597508,7.639,145.31,145.24,2.5474]
[1718375597509,100.0,145.31,145.24,2.5474]
[1718375597700,117.8243,145.31,145.22,33.3886]
[1718375597905,100.0,145.33,145.23,0.34]
[1718375598116,100.0,145.33,145.26,7.6412]
[1718375598315,100.0,145.33,145.23,0.34]
[1718375598496,100.0,145.33,145.27,17.8278]
[1718375598711,2.5457,145.34,145.26,12.7352]
[1718375598895,102.5459,145.33,145.25,2.5471]
[1718375599099,102.5465,145.3,145.22,38.4838]
[1718375599296,100.0,145.32,145.22,15.5542]
[1718375599519,107.6374,145.34,145.26,7.6412]
[1718375599819,13.89239534,145.4,145.23,0.51]
[1718375599820,100.0,145.36,145.29,2.5466]
[1718375600034,100.0,145.39,145.25,6.0254]
[1718375600217,100.0,145.41,145.34,17.8193]
[1718375600398,2.5444,145.42,145.34,5.0913]
[1718375600721,100.0,145.46,145.35,6.5321]
[1718375600924,100.0,145.48,145.37,0.17]
[1718375601113,100.0,145.48,145.39,7.6344]
[1718375601313,105.0861,145.5,145.42,2.5443]
[1718375601619,105.0861,145.5,145.38,0.17]
[1718375601620,100.0,145.46,145.38,2.545]
[1718375601923,2.5431,145.49,145.42,2.5443]
[1718375602125,2.5433,145.48,145.4,2.5446]
[1718375602303,2.5432,145.49,145.41,2.5444]
[1718375602627,100.0,145.5,145.43,2.5441]
[1718375602927,200.0,145.52,145.45,5.0875]
[1718375603101,200.0,145.52,145.44,7.6316]
[1718375603102,202.5426,145.52,145.44,7.6316]
[1718375603419,100.0,145.5,145.43,2.5441]
[1718375603598,2.5431,145.49,145.42,15.7254]
[1718375603799,2.5432,145.49,145.42,15.7254]
[1718375603993,107.629,145.5,145.42,18.2697]
[1718375604199,107.629,145.5,145.37,15.3984]
[1718375604200,100.0,145.47,145.37,15.3984]
[1718375604438,7.6325,145.43,145.37,15.3984]
[1718375604601,22.8962,145.44,145.37,15.3984]
[1718375604803,100.0,145.44,145.37,23.0337]
[1718375604999,100.0,145.42,145.35,6.1921]
[1718375605702,100.0,145.43,145.36,5.0904]
[1718375605910,100.0,145.43,145.36,2.5452]
[1718375606122,100.0,145.45,145.37,5.0902]
[1718375606328,100.0,145.5,145.43,2.5441]
[1718375606629,202.5426,145.52,145.44,2.5439]
[1718375606923,95.25681951,145.58,145.35,26.8221]
[1718375606924,105.0846,145.54,145.45,12.719]
[1718375607123,100.0,145.56,145.48,17.8021]
[1718375607332,100.0,145.58,145.53,2.5424]
[1718375607622,5.0822,145.61,145.52,23.0526]
[1718375607927,7.6233,145.61,145.53,2.5423]
[1718375608223,5.0821,145.61,145.52,5.425]
[1718375608425,2.5414,145.59,145.52,0.34]
[1718375608637,7.6231,145.61,145.53,2.7123]
[1718375608805,7.6231,145.61,145.53,0.34]
[1718375609003,7.6232,145.61,145.53,2.5423]
[1718375609201,110.9909496,145.62,145.54,0.17]
[1718375609202,0.8275496,145.62,145.54,0.17]
[1718375609402,0.8275496,145.62,145.56,2.5419]
[1718375609625,0.8275496,145.62,145.55,7.6259]
[1718375609926,3.3683496,145.62,145.54,7.9664]
[1718375610131,3.3683496,145.62,145.55,0.51]
[1718375610302,8.4501496,145.62,145.55,0.51]
[1718375610503,2.5411,145.61,145.53,2.5423]
[1718375610731,2.5411,145.61,145.31,34.83027328]
[1718375610732,100.0,145.58,145.45,22.25]
[1718375610900,2.5419,145.56,145.48,7.6296]
[1718375611209,2.5419,145.56,145.47,23.8672]
[1718375611210,7.6294,145.49,145.47,16.2372]
[1718375611411,22.8856,145.51,145.42,20.8251]
[1718375611610,107.6289,145.5,145.42,15.7365]
[1718375611810,22.8891,145.49,145.42,15.7365]
[1718375612008,5.0865,145.49,145.42,15.7365]
[1718375612237,20.3458,145.49,145.42,15.7365]
[1718375612444,2.5428,145.51,145.43,2.544]
[1718375612604,100.0,145.52,145.45,15.2625]
[1718375612916,5.0863,145.49,145.42,15.7365]
[1718375613336,100.0,145.5,145.42,15.7365]
[1718375613646,7.6289,145.5,145.42,18.2807]
[1718375613848,102.543,145.5,145.42,23.3693]
[1718375614007,107.6291,145.5,145.42,15.7365]
[1718375614204,2.5431,145.49,145.42,15.7365]
[1718375614521,110.175,145.46,145.37,15.7553]
[1718375614706,102.5437,145.46,145.37,38.6617]
[1718375614907,2.5435,145.47,145.39,2.5448]
[1718375615207,100.0,145.53,145.37,15.7553]
[1718375615539,102.5429,145.51,145.42,7.6328]
[1718375615840,45.51,145.57,145.37,15.7553]
[1718375615841,100.0,145.53,145.4,0.17]
[1718375616130,45.51,145.57,145.41,3.0544]
[1718375616131,2.5432,145.49,145.41,3.0544]
[1718375616543,2.5431,145.49,145.41,3.0544]
[1718375616845,15.2587,145.49,145.4,20.5267]
[1718375617141,2.5425,145.53,145.44,7.6319]
[1718375617450,2.5421,145.55,145.47,7.6302]
[1718375617731,122.8776,145.56,145.47,22.8908]
[1718375617732,107.6259,145.56,145.47,22.8908]
[1718375617924,2.5421,145.55,145.47,7.6302]
[1718375618123,15.2525,145.55,145.46,22.892]
[1718375618325,15.2525,145.55,145.43,0.34]
[1718375618326,15.2535,145.54,145.45,25.4371]
[1718375618538,100.0,145.56,145.44,0.34]
[1718375618739,7.6258,145.56,145.48,2.5432]
[1718375618903,7.6258,145.56,145.47,22.8903]
[1718375618904,17.7936,145.56,145.47,2.5433]
[1718375619112,2.5423,145.54,145.46,5.0872]
[1718375619439,10.1683,145.55,145.46,12.718]
[1718375619440,22.8791,145.55,145.46,12.718]
[1718375619744,20.3372,145.55,145.47,2.5434]
[1718375619909,20.3372,145.55,145.46,17.8054]
[1718375619910,122.8792,145.55,145.46,5.087]
[1718375620117,2.5419,145.56,145.48,2.5432]
[1718375620333,2.5419,145.56,145.48,7.6298]
[1718375620545,2.5418,145.57,145.49,7.629]
[1718375620839,7.6249,145.58,145.5,2.5428]
[1718375621134,2.5417,145.57,145.49,25.43]
[1718375621305,2.5417,145.57,145.49,7.6289]
[1718375621813,100.0,145.58,145.48,10.1731]
[1718375622023,5.0833,145.58,145.49,15.2581]
[1718375622207,5.0838,145.56,145.49,0.34]
[1718375622522,100.0,145.56,145.47,22.1711]
[1718375622727,2.5422,145.54,145.47,22.1711]
[1718375622940,5.0843,145.55,145.47,22.1711]
[1718375623111,7.626,145.56,145.48,5.0865]
[1718375623306,2.5416,145.58,145.5,5.0858]
[1718375623715,2.5416,145.58,145.5,2.5429]
[1718375624041,107.6248,145.58,145.5,2.5429]
[1718375624232,2.5417,145.57,145.49,7.6289]
[1718375624430,15.2515,145.56,145.48,3.2232]
[1718375624631,7.6257,145.56,145.48,8.3098]
[1718375624943,100.0,145.58,145.48,0.68]
[1718375625115,100.0,145.59,145.52,2.5425]
[1718375625444,0.8275496,145.62,145.55,15.2521]
[1718375625737,8.4501496,145.62,145.54,5.0843]
[1718375626054,0.8275496,145.62,145.55,5.4241]
[1718375626218,3.3683496,145.62,145.55,0.51]
[1718375626418,5.9092496,145.62,145.55,0.34]
[1718375626640,8.4501496,145.62,145.55,0.34]
[1718375626813,3.3684496,145.62,145.55,0.34]
[1718375627132,0.8275496,145.62,145.56,2.5418]
[1718375627314,0.8275496,145.62,145.56,5.2534]
[1718375627515,0.8275496,145.62,145.58,2.5415]
[1718375627743,0.8275496,145.62,145.57,7.9649]
[1718375627918,0.8275496,145.62,145.58,2.5415]
[1718375628119,0.8275496,145.62,145.57,2.8816]
[1718375628424,0.8275496,145.62,145.56,0.17]
[1718375628613,3.3684496,145.62,145.55,0.17]
[1718375628944,5.0826,145.6,145.51,7.6282]
[1718375629130,25.4109,145.61,145.53,2.5424]
[1718375629314,0.8275496,145.62,145.57,7.625]
[1718375629520,0.8275496,145.62,145.58,2.5414]
[1718375629844,0.8275496,145.62,145.57,7.6248]
[1718375630153,0.8275496,145.62,145.54,15.1184]
[1718375630450,0.8275496,145.62,145.59,2.5413]
[1718375630741,0.8275496,145.62,145.6,0.17]
[1718375631054,0.8275496,145.62,145.59,0.17]
[1718375631359,0.8275496,145.62,145.58,11.4447]
[1718375631558,0.8275496,145.62,145.59,23.552]
[1718375631717,0.8275496,145.62,145.59,8.304]
[1718375631917,0.8275496,145.62,145.58,6.3616]
[1718375632118,0.8275496,145.62,145.55,2.5419]
[1718375632352,0.8275496,145.62,145.58,7.6242]
[1718375632551,0.8275496,145.62,145.59,2.5413]
[1718375632769,0.8275496,145.62,145.6,2.5411]
[1718375633063,0.8275496,145.62,145.6,2.541]
[1718375633240,0.8275496,145.62,145.6,2.5411]
[1718375633441,0.8275496,145.62,145.6,0.17]
[1718375633968,0.8275496,145.62,145.59,0.34]
[1718375634739,0.8275496,145.62,145.57,2.5416]
[1718375634947,0.8275496,145.62,145.59,12.7066]
[1718375635141,0.8275496,145.62,145.59,22.8721]
[1718375635444,0.8275496,145.62,145.6,2.5411]
[1718375635748,0.8275496,145.62,145.57,5.0833]
[1718375635952,0.8275496,145.62,145.58,5.423]
[1718375636170,0.8275496,145.62,145.58,25.7551]
[1718375636484,0.8275496,145.62,145.58,2.8814]
[1718375636645,0.8275496,145.62,145.56,22.8764]
[1718375636851,0.8275496,145.62,145.57,7.6251]
[1718375637143,0.8275496,145.62,145.58,7.6245]
[1718375637343,0.8275496,145.62,145.59,7.6238]
[1718375637578,0.8275496,145.62,145.59,22.8721]
[1718375637787,0.8275496,145.62,145.6,7.6234]
[1718375637944,0.8275496,145.62,145.54,15.1184]
[1718375637945,0.8275496,145.62,145.61,7.623]
[1718375638143,0.8275496,145.62,145.61,15.5861]
[1718375638455,0.8275496,145.62,145.61,3.051]
[1718375638661,0.8275496,145.62,145.54,15.1184]
[1718375638871,0.8275496,145.62,145.57,2.5416]
[1718375639045,0.8275496,145.62,145.58,15.2491]
[1718375639363,0.8275496,145.62,145.59,15.2478]
[1718375639562,0.8275496,145.62,145.59,2.5412]
[1718375639773,0.8275496,145.62,145.61,7.623]
[1718375639948,0.8275496,145.62,145.61,25.4102]
[1718375640161,0.8275496,145.62,145.6,7.6234]
[1718375640477,0.8275496,145.62,145.61,0.34]
[1718375640688,0.8275496,145.62,145.61,0.68]
[1718375640852,0.8275496,145.62,145.61,26.0902]
[1718375641756,0.8275496,145.62,145.61,15.9261]
[1718375641960,0.8275496,145.62,145.61,26.0902]
[1718375642168,12.6968,145.71,145.62,12.874]
[1718375642351,25.3937,145.71,145.63,2.8806]
[1718375642551,2.5394,145.7,145.63,0.34]
[1718375642775,200.0,145.72,145.64,0.17]
[1718375643070,2.5388,145.74,145.67,0.17]
[1718375643379,2.5389,145.73,145.67,0.68]
[1718375643592,15.2327,145.74,145.65,0.17]
[1718375643593,12.6961,145.72,145.65,0.17]
[1718375643878,22.848,145.75,145.66,12.8706]
[1718375644048,2.5388,145.74,145.67,0.51]
[1718375644245,200.0,145.76,145.68,0.17]
[1718375644453,2.5393,145.71,145.66,0.17]
[1718375644781,2.5391,145.72,145.66,0.17]
[1718375645072,22.8495,145.74,145.67,0.17]
[1718375645378,0.8275496,145.77,145.67,2.8799]